[Event "Titled Tuesday Blitz March 07 Late 2023"]
[White "Karttunen, Mika"]
[Black "Licznerski, Lukasz"]
[WhiteFideId "502081"]
[BlackFideId "1179250"]
[WhiteElo "2396"]
[BlackElo "2450"]
[Result "1/2-1/2"]
[Round "02"]
[TimeControl "180+2"]
[Date "2023.03.07"]
[WhiteClock "0:00:06"]
[BlackClock "0:00:05"]

1. e4 {[%clk 0:03:00]}  c6 {[%clk 0:03:00]} 2. d4 {[%clk 0:03:00]}  d5 {[%clk 0:03:01]} 3. e5 {[%clk 0:03:00]}  Bf5 {[%clk 0:03:00]} 4. h4 {[%clk 0:03:00]}  h5 {[%clk 0:03:00]} 5. Bd3 {[%clk 0:03:01]}  Bxd3 {[%clk 0:03:00]} 6. Qxd3 {[%clk 0:03:02]}  Qa5+ {[%clk 0:03:00]} 7. Bd2 {[%clk 0:02:59]}  Qa6 {[%clk 0:03:00]} 8. e6 {[%clk 0:03:00]}  Qxd3 {[%clk 0:03:00]} 9. exf7+ {[%clk 0:03:00]}  Kxf7 {[%clk 0:03:01]} 10. cxd3 {[%clk 0:03:00]}  Nd7 {[%clk 0:02:53]} 11. Nf3 {[%clk 0:03:00]}  e6 {[%clk 0:02:47]} 12. Ng5+ {[%clk 0:02:38]}  Kf6 {[%clk 0:02:46]} 13. Bc3 {[%clk 0:02:37]}  Nh6 {[%clk 0:02:36]} 14. Nd2 {[%clk 0:02:34]}  Nf7 {[%clk 0:02:32]} 15. Nxf7 {[%clk 0:01:59]}  Kxf7 {[%clk 0:02:32]} 16. Nf3 {[%clk 0:01:58]}  Be7 {[%clk 0:02:28]} 17. O-O {[%clk 0:01:52]}  Bf6 {[%clk 0:02:26]} 18. Rae1 {[%clk 0:01:51]}  Rhe8 {[%clk 0:02:04]} 19. Re3 {[%clk 0:01:49]}  a5 {[%clk 0:01:46]} 20. Rfe1 {[%clk 0:01:08]}  a4 {[%clk 0:01:45]} 21. a3 {[%clk 0:00:58]}  b6 {[%clk 0:01:45]} 22. g3 {[%clk 0:00:42]}  c5 {[%clk 0:01:44]} 23. Kg2 {[%clk 0:00:40]}  Rac8 {[%clk 0:01:42]} 24. Ng5+ {[%clk 0:00:35]}  Bxg5 {[%clk 0:01:41]} 25. hxg5 {[%clk 0:00:36]}  Nb8 {[%clk 0:01:20]} 26. dxc5 {[%clk 0:00:12]}  bxc5 {[%clk 0:01:18]} 27. Be5 {[%clk 0:00:12]}  Nc6 {[%clk 0:01:14]} 28. f4 {[%clk 0:00:12]}  Nxe5 {[%clk 0:01:10]} 29. Rxe5 {[%clk 0:00:12]}  g6 {[%clk 0:01:08]} 30. R1e2 {[%clk 0:00:12]}  Rc6 {[%clk 0:01:06]} 31. Kf3 {[%clk 0:00:12]}  Rb8 {[%clk 0:01:06]} 32. g4 {[%clk 0:00:12]}  Rb3 {[%clk 0:00:57]} 33. Rd2 {[%clk 0:00:07]}  c4 {[%clk 0:00:37]} 34. gxh5 {[%clk 0:00:07]}  gxh5 {[%clk 0:00:37]} 35. Ke3 {[%clk 0:00:07]}  cxd3 {[%clk 0:00:31]} 36. f5 {[%clk 0:00:06]}  exf5 {[%clk 0:00:30]} 37. Rxf5+ {[%clk 0:00:06]}  Kg6 {[%clk 0:00:30]} 38. Rxd5 {[%clk 0:00:06]}  Re6+ {[%clk 0:00:26]} 39. Kd4 {[%clk 0:00:06]}  Reb6 {[%clk 0:00:24]} 40. Rxd3 {[%clk 0:00:05]}  Rxd3+ {[%clk 0:00:24]} 41. Kxd3 {[%clk 0:00:05]}  Rxb2 {[%clk 0:00:24]} 42. Ra5 {[%clk 0:00:06]}  Rb3+ {[%clk 0:00:24]} 43. Ke4 {[%clk 0:00:06]}  Rxa3 {[%clk 0:00:25]} 44. Kf4 {[%clk 0:00:07]}  Ra1 {[%clk 0:00:20]} 45. Ra6+ {[%clk 0:00:07]}  Kg7 {[%clk 0:00:20]} 46. Ra7+ {[%clk 0:00:07]}  Kf8 {[%clk 0:00:20]} 47. Ra8+ {[%clk 0:00:07]}  Ke7 {[%clk 0:00:20]} 48. Ra7+ {[%clk 0:00:08]}  Kd6 {[%clk 0:00:21]} 49. g6 {[%clk 0:00:07]}  Rg1 {[%clk 0:00:12]} 50. Kf5 {[%clk 0:00:05]}  Rg4 {[%clk 0:00:06]} 51. g7 {[%clk 0:00:05]}  Kc5 {[%clk 0:00:05]} 52. Kf6 {[%clk 0:00:05]}  Kb4 {[%clk 0:00:04]} 53. Ra8 {[%clk 0:00:05]}  a3 {[%clk 0:00:03]} 54. g8=Q {[%clk 0:00:05]}  Rxg8 {[%clk 0:00:04]} 55. Rxg8 {[%clk 0:00:05]}  a2 {[%clk 0:00:04]} 56. Ra8 {[%clk 0:00:05]}  Kb3 {[%clk 0:00:05]} 57. Kg5 {[%clk 0:00:06]}  Kb2 {[%clk 0:00:04]} 58. Kxh5 {[%clk 0:00:06]}  a1=Q {[%clk 0:00:04]} 59. Rxa1 {[%clk 0:00:06]}  Kxa1 {[%clk 0:00:05]} 1/2-1/2


[Site "https://www.chess.com"]

[Event "Titled Tuesday Blitz March 07 Late 2023"]
[White "Petukhov, Dmitry"]
[Black "Fressinet, Laurent"]
[WhiteFideId "4142748"]
[BlackFideId "608742"]
[WhiteElo "2311"]
[BlackElo "2633"]
[Result "1-0"]
[Round "02"]
[TimeControl "180+2"]
[Date "2023.03.07"]
[WhiteClock "0:00:19"]
[BlackClock "0:00:01"]

1. e4 {[%clk 0:03:00]}  c5 {[%clk 0:02:57]} 2. c3 {[%clk 0:02:51]}  Nf6 {[%clk 0:02:56]} 3. e5 {[%clk 0:02:51]}  Nd5 {[%clk 0:02:55]} 4. d4 {[%clk 0:02:52]}  cxd4 {[%clk 0:02:55]} 5. Nf3 {[%clk 0:02:51]}  Nc6 {[%clk 0:02:54]} 6. Bc4 {[%clk 0:02:51]}  Nb6 {[%clk 0:02:54]} 7. Bb3 {[%clk 0:02:51]}  g6 {[%clk 0:02:54]} 8. cxd4 {[%clk 0:02:50]}  d5 {[%clk 0:02:46]} 9. h3 {[%clk 0:02:32]}  Bg7 {[%clk 0:02:45]} 10. O-O {[%clk 0:02:32]}  O-O {[%clk 0:02:46]} 11. Nc3 {[%clk 0:02:32]}  f6 {[%clk 0:02:45]} 12. exf6 {[%clk 0:02:12]}  exf6 {[%clk 0:02:46]} 13. Re1 {[%clk 0:02:08]}  Kh8 {[%clk 0:02:43]} 14. Bf4 {[%clk 0:01:55]}  g5 {[%clk 0:02:43]} 15. Bg3 {[%clk 0:01:51]}  g4 {[%clk 0:02:43]} 16. hxg4 {[%clk 0:01:47]}  Bxg4 {[%clk 0:02:43]} 17. Qd3 {[%clk 0:01:46]}  Bxf3 {[%clk 0:02:38]} 18. Qxf3 {[%clk 0:01:39]}  Nxd4 {[%clk 0:02:27]} 19. Qd3 {[%clk 0:01:39]}  Nxb3 {[%clk 0:01:58]} 20. axb3 {[%clk 0:01:40]}  Qd7 {[%clk 0:01:59]} 21. Rad1 {[%clk 0:01:38]}  Rad8 {[%clk 0:01:54]} 22. Ne2 {[%clk 0:01:28]}  f5 {[%clk 0:01:49]} 23. Nf4 {[%clk 0:01:25]}  Rfe8 {[%clk 0:01:47]} 24. Nh5 {[%clk 0:01:13]}  Bxb2 {[%clk 0:01:10]} 25. Bh4 {[%clk 0:00:58]}  Rxe1+ {[%clk 0:01:07]} 26. Rxe1 {[%clk 0:00:57]}  Re8 {[%clk 0:01:07]} 27. Re2 {[%clk 0:00:54]}  Qf7 {[%clk 0:00:58]} 28. Qxf5 {[%clk 0:00:47]}  Rf8 {[%clk 0:00:11]} 29. Qxf7 {[%clk 0:00:45]}  Rxf7 {[%clk 0:00:12]} 30. Rxb2 {[%clk 0:00:45]}  Rf5 {[%clk 0:00:11]} 31. Ng3 {[%clk 0:00:42]}  Rf4 {[%clk 0:00:10]} 32. Bg5 {[%clk 0:00:41]}  Rb4 {[%clk 0:00:09]} 33. Be7 {[%clk 0:00:30]}  Rb5 {[%clk 0:00:07]} 34. b4 {[%clk 0:00:24]}  Kg8 {[%clk 0:00:07]} 35. Bc5 {[%clk 0:00:21]}  Na4 {[%clk 0:00:06]} 36. Ra2 {[%clk 0:00:18]}  Nxc5 {[%clk 0:00:04]} 37. bxc5 {[%clk 0:00:19]}  a5 {[%clk 0:00:05]} 38. Rc2 {[%clk 0:00:19]}  a4 {[%clk 0:00:05]} 39. c6 {[%clk 0:00:19]}  bxc6 {[%clk 0:00:03]} 40. Rxc6 {[%clk 0:00:20]}  Ra5 {[%clk 0:00:04]} 41. Rc2 {[%clk 0:00:20]}  a3 {[%clk 0:00:04]} 42. Ra2 {[%clk 0:00:20]}  d4 {[%clk 0:00:04]} 43. Ne4 {[%clk 0:00:20]}  d3 {[%clk 0:00:03]} 44. Nd2 {[%clk 0:00:20]}  Kf7 {[%clk 0:00:03]} 45. Nc4 {[%clk 0:00:20]}  Rc5 {[%clk 0:00:03]} 46. Rxa3 {[%clk 0:00:18]}  Rxc4 {[%clk 0:00:03]} 47. Rxd3 {[%clk 0:00:19]}  Rc1+ {[%clk 0:00:04]} 48. Kh2 {[%clk 0:00:19]}  Rc2 {[%clk 0:00:05]} 49. Rf3+ {[%clk 0:00:20]}  Kg6 {[%clk 0:00:05]} 50. Rg3+ {[%clk 0:00:21]}  Kf6 {[%clk 0:00:05]} 51. f3 {[%clk 0:00:21]}  h6 {[%clk 0:00:04]} 52. Kh3 {[%clk 0:00:21]}  Rc1 {[%clk 0:00:04]} 53. Rg4 {[%clk 0:00:21]}  Rh1+ {[%clk 0:00:04]} 54. Kg3 {[%clk 0:00:22]}  Rc1 {[%clk 0:00:02]} 55. Rh4 {[%clk 0:00:22]}  Kg6 {[%clk 0:00:02]} 56. Rd4 {[%clk 0:00:23]}  Kh7 {[%clk 0:00:02]} 57. Rd7+ {[%clk 0:00:23]}  Kg6 {[%clk 0:00:03]} 58. Rd6+ {[%clk 0:00:23]}  Kg7 {[%clk 0:00:02]} 59. Kg4 {[%clk 0:00:23]}  Rc2 {[%clk 0:00:02]} 60. g3 {[%clk 0:00:23]}  Rc4+ {[%clk 0:00:02]} 61. f4 {[%clk 0:00:24]}  Ra4 {[%clk 0:00:02]} 62. Rd5 {[%clk 0:00:23]}  Ra6 {[%clk 0:00:02]} 63. Kh5 {[%clk 0:00:21]}  Ra3 {[%clk 0:00:01]} 64. Rd7+ {[%clk 0:00:19]} 1-0


[Site "https://www.chess.com"]

[Event "Titled Tuesday Blitz March 07 Late 2023"]
[White "Keymer, Vincent"]
[Black "Kanakaris, Georgios"]
[WhiteFideId "12940690"]
[BlackFideId "4209460"]
[WhiteElo "2651"]
[BlackElo "2291"]
[Result "1-0"]
[Round "02"]
[TimeControl "180+2"]
[Date "2023.03.07"]
[WhiteClock "0:00:02"]
[BlackClock "0:00:05"]

1. a3 {[%clk 0:03:00]}  g6 {[%clk 0:02:57]} 2. Nf3 {[%clk 0:03:00]}  Bg7 {[%clk 0:02:57]} 3. c4 {[%clk 0:03:01]}  Nc6 {[%clk 0:02:56]} 4. d4 {[%clk 0:03:00]}  d6 {[%clk 0:02:56]} 5. e3 {[%clk 0:02:55]}  Nf6 {[%clk 0:02:55]} 6. b4 {[%clk 0:02:54]}  O-O {[%clk 0:02:55]} 7. Bb2 {[%clk 0:02:54]}  a5 {[%clk 0:02:51]} 8. b5 {[%clk 0:02:54]}  Nb8 {[%clk 0:02:51]} 9. Be2 {[%clk 0:02:50]}  b6 {[%clk 0:02:51]} 10. O-O {[%clk 0:02:45]}  Bb7 {[%clk 0:02:50]} 11. Nc3 {[%clk 0:02:30]}  Nbd7 {[%clk 0:02:48]} 12. Na4 {[%clk 0:02:30]}  Ne4 {[%clk 0:02:43]} 13. Qc2 {[%clk 0:02:29]}  e6 {[%clk 0:02:32]} 14. Rfd1 {[%clk 0:02:20]}  f5 {[%clk 0:02:24]} 15. c5 {[%clk 0:01:54]}  bxc5 {[%clk 0:02:22]} 16. Rac1 {[%clk 0:01:15]}  Bd5 {[%clk 0:02:13]} 17. Nd2 {[%clk 0:01:05]}  Nxd2 {[%clk 0:02:10]} 18. Rxd2 {[%clk 0:01:02]}  cxd4 {[%clk 0:01:51]} 19. Bxd4 {[%clk 0:01:00]}  Bxd4 {[%clk 0:01:41]} 20. Rxd4 {[%clk 0:01:01]}  Rc8 {[%clk 0:01:29]} 21. Bc4 {[%clk 0:00:53]}  Nb6 {[%clk 0:01:12]} 22. Bxd5 {[%clk 0:00:44]}  Nxd5 {[%clk 0:01:12]} 23. Qb3 {[%clk 0:00:26]}  Qd7 {[%clk 0:01:00]} 24. Nc3 {[%clk 0:00:20]}  Nxc3 {[%clk 0:00:49]} 25. Rxc3 {[%clk 0:00:20]}  Rb8 {[%clk 0:00:45]} 26. a4 {[%clk 0:00:18]}  Rf7 {[%clk 0:00:20]} 27. Rdc4 {[%clk 0:00:10]}  c5 {[%clk 0:00:18]} 28. Qd1 {[%clk 0:00:07]}  Qe7 {[%clk 0:00:12]} 29. Rd3 {[%clk 0:00:07]}  Rb6 {[%clk 0:00:12]} 30. h3 {[%clk 0:00:04]}  d5 {[%clk 0:00:11]} 31. Rc2 {[%clk 0:00:04]}  c4 {[%clk 0:00:11]} 32. Rd4 {[%clk 0:00:04]}  Qc5 {[%clk 0:00:09]} 33. Qd2 {[%clk 0:00:03]}  Rd7 {[%clk 0:00:08]} 34. Rdxc4 {[%clk 0:00:02]}  dxc4 {[%clk 0:00:07]} 35. Qxd7 {[%clk 0:00:02]}  Rd6 {[%clk 0:00:07]} 36. Rxc4 {[%clk 0:00:02]}  Qe5 {[%clk 0:00:05]} 37. Rc8# {[%clk 0:00:02]} 1-0


[Site "https://www.chess.com"]

[Event "Titled Tuesday Blitz March 07 Late 2023"]
[White "Martinez Alcantara, Jose Eduardo"]
[Black "Chor, Kevin"]
[WhiteFideId "3805662"]
[BlackFideId "2090740"]
[WhiteElo "2712"]
[BlackElo "2555"]
[Result "1-0"]
[Round "02"]
[TimeControl "180+2"]
[Date "2023.03.07"]
[WhiteClock "0:00:16"]
[BlackClock "0:00:11"]

1. Nf3 {[%clk 0:03:00]}  c5 {[%clk 0:02:57]} 2. g3 {[%clk 0:02:59]}  g6 {[%clk 0:02:46]} 3. Bg2 {[%clk 0:02:58]}  Bg7 {[%clk 0:02:47]} 4. O-O {[%clk 0:02:59]}  Nc6 {[%clk 0:02:45]} 5. c4 {[%clk 0:02:59]}  Nf6 {[%clk 0:02:39]} 6. Nc3 {[%clk 0:02:58]}  O-O {[%clk 0:02:38]} 7. d3 {[%clk 0:02:59]}  Rb8 {[%clk 0:02:38]} 8. Bd2 {[%clk 0:02:57]}  d6 {[%clk 0:02:36]} 9. Rb1 {[%clk 0:02:57]}  a5 {[%clk 0:02:32]} 10. a3 {[%clk 0:02:55]}  Ne8 {[%clk 0:02:18]} 11. Nb5 {[%clk 0:02:52]}  Nc7 {[%clk 0:02:15]} 12. Nxc7 {[%clk 0:02:33]}  Qxc7 {[%clk 0:02:16]} 13. b4 {[%clk 0:02:33]}  axb4 {[%clk 0:02:13]} 14. axb4 {[%clk 0:02:34]}  cxb4 {[%clk 0:02:03]} 15. Bxb4 {[%clk 0:02:35]}  b5 {[%clk 0:02:02]} 16. cxb5 {[%clk 0:02:30]}  Nxb4 {[%clk 0:02:02]} 17. Rxb4 {[%clk 0:02:29]}  Qc5 {[%clk 0:02:02]} 18. Qb1 {[%clk 0:02:28]}  Be6 {[%clk 0:01:52]} 19. Rc1 {[%clk 0:02:18]}  Bc3 {[%clk 0:01:48]} 20. Rb2 {[%clk 0:02:08]}  Qa3 {[%clk 0:01:32]} 21. Rbc2 {[%clk 0:02:08]}  Bf6 {[%clk 0:01:30]} 22. Nd2 {[%clk 0:02:06]}  Qa5 {[%clk 0:01:18]} 23. Bc6 {[%clk 0:02:01]}  Bg5 {[%clk 0:01:13]} 24. e3 {[%clk 0:01:59]}  Qa3 {[%clk 0:01:09]} 25. Rc3 {[%clk 0:01:50]}  Qa7 {[%clk 0:01:06]} 26. d4 {[%clk 0:01:50]}  Bd7 {[%clk 0:00:58]} 27. Ne4 {[%clk 0:01:45]}  Bh6 {[%clk 0:00:50]} 28. Qd3 {[%clk 0:01:43]}  Bf5 {[%clk 0:00:49]} 29. Qc4 {[%clk 0:01:27]}  Rbc8 {[%clk 0:00:39]} 30. Nd2 {[%clk 0:01:26]}  Be6 {[%clk 0:00:33]} 31. Qd3 {[%clk 0:01:26]}  Bg7 {[%clk 0:00:31]} 32. Nf3 {[%clk 0:01:25]}  Bf5 {[%clk 0:00:30]} 33. e4 {[%clk 0:01:17]}  Bg4 {[%clk 0:00:30]} 34. e5 {[%clk 0:01:02]}  dxe5 {[%clk 0:00:24]} 35. Nxe5 {[%clk 0:00:57]}  Bf5 {[%clk 0:00:24]} 36. Qe3 {[%clk 0:00:53]}  Rfd8 {[%clk 0:00:22]} 37. d5 {[%clk 0:00:34]}  Qc7 {[%clk 0:00:16]} 38. f4 {[%clk 0:00:32]}  Qd6 {[%clk 0:00:16]} 39. b6 {[%clk 0:00:30]}  Rb8 {[%clk 0:00:15]} 40. b7 {[%clk 0:00:30]}  e6 {[%clk 0:00:12]} 41. dxe6 {[%clk 0:00:29]}  Bxe6 {[%clk 0:00:12]} 42. Bf3 {[%clk 0:00:27]}  g5 {[%clk 0:00:09]} 43. Rd3 {[%clk 0:00:21]}  Qe7 {[%clk 0:00:07]} 44. Nc6 {[%clk 0:00:18]}  Rxd3 {[%clk 0:00:06]} 45. Qxd3 {[%clk 0:00:19]}  Qc7 {[%clk 0:00:07]} 46. fxg5 {[%clk 0:00:11]}  Rxb7 {[%clk 0:00:06]} 47. Rd1 {[%clk 0:00:07]}  Qb6+ {[%clk 0:00:06]} 48. Kh1 {[%clk 0:00:07]}  Rd7 {[%clk 0:00:07]} 49. Qe2 {[%clk 0:00:07]}  Rxd1+ {[%clk 0:00:07]} 50. Qxd1 {[%clk 0:00:08]}  h6 {[%clk 0:00:07]} 51. gxh6 {[%clk 0:00:07]}  Bxh6 {[%clk 0:00:08]} 52. Ne5 {[%clk 0:00:07]}  Bg7 {[%clk 0:00:07]} 53. Nd3 {[%clk 0:00:07]}  Qe3 {[%clk 0:00:07]} 54. Nf4 {[%clk 0:00:07]}  Bf5 {[%clk 0:00:07]} 55. Bg2 {[%clk 0:00:07]}  Kh7 {[%clk 0:00:07]} 56. Qh5+ {[%clk 0:00:08]}  Kg8 {[%clk 0:00:06]} 57. Qd1 {[%clk 0:00:08]}  Be4 {[%clk 0:00:06]} 58. Qf1 {[%clk 0:00:08]}  Bd4 {[%clk 0:00:05]} 59. Bxe4 {[%clk 0:00:08]}  Qxe4+ {[%clk 0:00:05]} 60. Ng2 {[%clk 0:00:08]}  Qc2 {[%clk 0:00:05]} 61. Qe1 {[%clk 0:00:07]}  Qc5 {[%clk 0:00:03]} 62. Qd1 {[%clk 0:00:06]}  Qd5 {[%clk 0:00:03]} 63. Qg4+ {[%clk 0:00:05]}  Kf8 {[%clk 0:00:03]} 64. Qd1 {[%clk 0:00:04]}  Kg7 {[%clk 0:00:04]} 65. h3 {[%clk 0:00:05]}  Kf8 {[%clk 0:00:04]} 66. Kh2 {[%clk 0:00:05]}  Qe4 {[%clk 0:00:04]} 67. Qd2 {[%clk 0:00:05]}  Be5 {[%clk 0:00:04]} 68. Qh6+ {[%clk 0:00:05]}  Ke7 {[%clk 0:00:05]} 69. Qg5+ {[%clk 0:00:06]}  Bf6 {[%clk 0:00:05]} 70. Qc5+ {[%clk 0:00:06]}  Ke6 {[%clk 0:00:05]} 71. Nf4+ {[%clk 0:00:06]}  Kd7 {[%clk 0:00:05]} 72. Qb5+ {[%clk 0:00:07]}  Ke7 {[%clk 0:00:05]} 73. Nd5+ {[%clk 0:00:07]}  Ke6 {[%clk 0:00:06]} 74. Qc6+ {[%clk 0:00:06]}  Ke5 {[%clk 0:00:06]} 75. Qxf6+ {[%clk 0:00:06]}  Kxd5 {[%clk 0:00:07]} 76. Qxf7+ {[%clk 0:00:07]}  Kc5 {[%clk 0:00:07]} 77. Qa7+ {[%clk 0:00:07]}  Kb4 {[%clk 0:00:07]} 78. Qb6+ {[%clk 0:00:07]}  Kc3 {[%clk 0:00:07]} 79. Qf2 {[%clk 0:00:07]}  Qh7 {[%clk 0:00:06]} 80. h4 {[%clk 0:00:08]}  Qd3 {[%clk 0:00:06]} 81. Kg2 {[%clk 0:00:08]}  Kb4 {[%clk 0:00:05]} 82. Qf4+ {[%clk 0:00:08]}  Kb3 {[%clk 0:00:04]} 83. Kh3 {[%clk 0:00:08]}  Qc2 {[%clk 0:00:04]} 84. Kg4 {[%clk 0:00:08]}  Kb2 {[%clk 0:00:05]} 85. h5 {[%clk 0:00:08]}  Qe2+ {[%clk 0:00:05]} 86. Kh4 {[%clk 0:00:09]}  Qc2 {[%clk 0:00:05]} 87. h6 {[%clk 0:00:09]}  Qh2+ {[%clk 0:00:06]} 88. Kg5 {[%clk 0:00:09]}  Qc2 {[%clk 0:00:06]} 89. Qf6+ {[%clk 0:00:10]}  Kb1 {[%clk 0:00:06]} 90. Qf5 {[%clk 0:00:10]}  Ka1 {[%clk 0:00:06]} 91. h7 {[%clk 0:00:10]}  Kb1 {[%clk 0:00:06]} 92. Qxc2+ {[%clk 0:00:10]}  Ka1 {[%clk 0:00:07]} 93. Qd2 {[%clk 0:00:10]}  Kb1 {[%clk 0:00:07]} 94. Kf4 {[%clk 0:00:11]}  Ka1 {[%clk 0:00:07]} 95. Ke4 {[%clk 0:00:12]}  Kb1 {[%clk 0:00:08]} 96. Kd3 {[%clk 0:00:13]}  Ka1 {[%clk 0:00:09]} 97. Kc3 {[%clk 0:00:14]}  Kb1 {[%clk 0:00:10]} 98. Kb3 {[%clk 0:00:15]}  Ka1 {[%clk 0:00:11]} 99. Qb2# {[%clk 0:00:16]} 1-0


[Site "https://www.chess.com"]

[Event "Titled Tuesday Blitz March 07 Late 2023"]
[White "Klose, Eli"]
[Black "Maksimovic, Bojan"]
[WhiteFideId "16242955"]
[BlackFideId "14408120"]
[WhiteElo "2554"]
[BlackElo "2468"]
[Result "0-1"]
[Round "02"]
[TimeControl "180+2"]
[Date "2023.03.07"]
[WhiteClock "0:00:19"]
[BlackClock "0:00:13"]

1. e4 {[%clk 0:02:59]}  g6 {[%clk 0:02:57]} 2. d4 {[%clk 0:02:57]}  Bg7 {[%clk 0:02:57]} 3. Nc3 {[%clk 0:02:57]}  d6 {[%clk 0:02:57]} 4. Bg5 {[%clk 0:02:57]}  h6 {[%clk 0:02:56]} 5. Be3 {[%clk 0:02:54]}  Nd7 {[%clk 0:02:56]} 6. Qd2 {[%clk 0:02:54]}  e5 {[%clk 0:02:56]} 7. f3 {[%clk 0:02:54]}  c6 {[%clk 0:02:52]} 8. a4 {[%clk 0:02:53]}  Ngf6 {[%clk 0:02:50]} 9. Bc4 {[%clk 0:02:45]}  exd4 {[%clk 0:02:46]} 10. Bxd4 {[%clk 0:02:45]}  O-O {[%clk 0:02:42]} 11. Be3 {[%clk 0:02:43]}  d5 {[%clk 0:02:37]} 12. exd5 {[%clk 0:02:42]}  Nxd5 {[%clk 0:02:31]} 13. Bxd5 {[%clk 0:02:27]}  cxd5 {[%clk 0:02:29]} 14. Nge2 {[%clk 0:02:28]}  Ne5 {[%clk 0:02:15]} 15. b3 {[%clk 0:02:21]}  Nc6 {[%clk 0:01:10]} 16. Rd1 {[%clk 0:02:05]}  Re8 {[%clk 0:01:07]} 17. O-O {[%clk 0:01:53]}  d4 {[%clk 0:00:32]} 18. Nxd4 {[%clk 0:01:37]}  Rxe3 {[%clk 0:00:24]} 19. Qxe3 {[%clk 0:01:00]}  Bxd4 {[%clk 0:00:22]} 20. Rxd4 {[%clk 0:00:54]}  Qxd4 {[%clk 0:00:23]} 21. Qxd4 {[%clk 0:00:54]}  Nxd4 {[%clk 0:00:22]} 22. Rd1 {[%clk 0:00:55]}  Nc6 {[%clk 0:00:20]} 23. Nb5 {[%clk 0:00:50]}  Bf5 {[%clk 0:00:17]} 24. c4 {[%clk 0:00:45]}  Bc2 {[%clk 0:00:16]} 25. Rd7 {[%clk 0:00:44]}  Bxb3 {[%clk 0:00:17]} 26. Rxb7 {[%clk 0:00:42]}  Bxc4 {[%clk 0:00:17]} 27. Nd6 {[%clk 0:00:41]}  Be6 {[%clk 0:00:17]} 28. Rc7 {[%clk 0:00:40]}  Ne5 {[%clk 0:00:17]} 29. a5 {[%clk 0:00:36]}  Rd8 {[%clk 0:00:17]} 30. Ne4 {[%clk 0:00:34]}  a6 {[%clk 0:00:15]} 31. Nc5 {[%clk 0:00:31]}  Bc4 {[%clk 0:00:15]} 32. Nb7 {[%clk 0:00:30]}  Rd2 {[%clk 0:00:13]} 33. f4 {[%clk 0:00:29]}  Ng4 {[%clk 0:00:13]} 34. g3 {[%clk 0:00:20]}  Bd5 {[%clk 0:00:13]} 35. h3 {[%clk 0:00:19]}  Rd1# {[%clk 0:00:13]} 0-1


[Site "https://www.chess.com"]

[Event "Titled Tuesday Blitz March 07 Late 2023"]
[White "Dardha, Daniel"]
[Black "Marra, Eduardo da Costa"]
[WhiteFideId "240990"]
[BlackFideId "2106990"]
[WhiteElo "2581"]
[BlackElo "2252"]
[Result "1-0"]
[Round "02"]
[TimeControl "180+2"]
[Date "2023.03.07"]
[WhiteClock "0:00:20"]
[BlackClock "0:00:09"]

1. b3 {[%clk 0:02:58]}  c5 {[%clk 0:03:00]} 2. Bb2 {[%clk 0:02:56]}  Nc6 {[%clk 0:03:00]} 3. e4 {[%clk 0:02:56]}  d6 {[%clk 0:03:00]} 4. Bb5 {[%clk 0:02:54]}  Bd7 {[%clk 0:03:00]} 5. f4 {[%clk 0:02:54]}  a6 {[%clk 0:02:58]} 6. Bxc6 {[%clk 0:02:54]}  Bxc6 {[%clk 0:02:59]} 7. Nc3 {[%clk 0:02:55]}  Nf6 {[%clk 0:02:59]} 8. Qe2 {[%clk 0:02:55]}  e6 {[%clk 0:02:59]} 9. O-O-O {[%clk 0:02:54]}  Be7 {[%clk 0:02:59]} 10. Nf3 {[%clk 0:02:54]}  b5 {[%clk 0:02:50]} 11. e5 {[%clk 0:02:48]}  dxe5 {[%clk 0:02:41]} 12. Nxe5 {[%clk 0:02:45]}  Bb7 {[%clk 0:02:39]} 13. d3 {[%clk 0:02:44]}  Qc7 {[%clk 0:02:32]} 14. Ne4 {[%clk 0:02:35]}  h6 {[%clk 0:02:19]} 15. g4 {[%clk 0:02:29]}  Rf8 {[%clk 0:01:56]} 16. f5 {[%clk 0:02:16]}  exf5 {[%clk 0:01:43]} 17. gxf5 {[%clk 0:02:05]}  O-O-O {[%clk 0:01:41]} 18. Kb1 {[%clk 0:01:47]}  Nxe4 {[%clk 0:01:26]} 19. dxe4 {[%clk 0:01:48]}  Bf6 {[%clk 0:01:26]} 20. Ng4 {[%clk 0:01:39]}  Bxb2 {[%clk 0:01:25]} 21. Kxb2 {[%clk 0:01:40]}  Rde8 {[%clk 0:01:18]} 22. Nf2 {[%clk 0:01:31]}  Re7 {[%clk 0:01:13]} 23. Rhe1 {[%clk 0:01:27]}  Rfe8 {[%clk 0:01:12]} 24. Qg4 {[%clk 0:01:17]}  f6 {[%clk 0:01:12]} 25. h3 {[%clk 0:01:15]}  Qe5+ {[%clk 0:01:08]} 26. Kb1 {[%clk 0:01:14]}  Rd8 {[%clk 0:00:59]} 27. Nd3 {[%clk 0:01:01]}  Qc3 {[%clk 0:00:54]} 28. Qg1 {[%clk 0:00:47]}  Rc7 {[%clk 0:00:47]} 29. Nf4 {[%clk 0:00:43]}  Rxd1+ {[%clk 0:00:30]} 30. Rxd1 {[%clk 0:00:44]}  Bxe4 {[%clk 0:00:26]} 31. Qf2 {[%clk 0:00:43]}  Rd7 {[%clk 0:00:19]} 32. Rxd7 {[%clk 0:00:40]}  Kxd7 {[%clk 0:00:20]} 33. Ne6 {[%clk 0:00:38]}  Bxf5 {[%clk 0:00:16]} 34. Nxc5+ {[%clk 0:00:28]}  Kc6 {[%clk 0:00:15]} 35. Nxa6 {[%clk 0:00:27]}  Qe5 {[%clk 0:00:11]} 36. Nb4+ {[%clk 0:00:25]}  Kc7 {[%clk 0:00:11]} 37. a3 {[%clk 0:00:21]}  Qc3 {[%clk 0:00:09]} 38. Nd5+ {[%clk 0:00:19]}  Kd6 {[%clk 0:00:09]} 39. Nxc3 {[%clk 0:00:20]} 1-0


[Site "https://www.chess.com"]

[Event "Titled Tuesday Blitz March 07 Late 2023"]
[White "Li, Ruifeng"]
[Black "Krallis, Christos"]
[WhiteFideId "2061074"]
[BlackFideId "4298896"]
[WhiteElo "2441"]
[BlackElo "2243"]
[Result "0-1"]
[Round "02"]
[TimeControl "180+2"]
[Date "2023.03.07"]
[WhiteClock "0:00:11"]
[BlackClock "0:00:31"]

1. b3 {[%clk 0:03:00]}  c5 {[%clk 0:02:54]} 2. Bb2 {[%clk 0:03:01]}  Nc6 {[%clk 0:02:54]} 3. Nf3 {[%clk 0:02:58]}  Nf6 {[%clk 0:02:54]} 4. e3 {[%clk 0:02:57]}  e6 {[%clk 0:02:54]} 5. d4 {[%clk 0:02:56]}  cxd4 {[%clk 0:02:51]} 6. exd4 {[%clk 0:02:55]}  b6 {[%clk 0:02:51]} 7. Bd3 {[%clk 0:02:54]}  Bb7 {[%clk 0:02:50]} 8. a3 {[%clk 0:02:54]}  d5 {[%clk 0:02:45]} 9. O-O {[%clk 0:02:54]}  Bd6 {[%clk 0:02:45]} 10. Nbd2 {[%clk 0:02:54]}  O-O {[%clk 0:02:45]} 11. Ne5 {[%clk 0:02:55]}  Rc8 {[%clk 0:02:45]} 12. f4 {[%clk 0:02:54]}  Ne7 {[%clk 0:02:45]} 13. Qe2 {[%clk 0:02:52]}  Bb8 {[%clk 0:02:37]} 14. Rae1 {[%clk 0:02:44]}  Nf5 {[%clk 0:02:37]} 15. Kh1 {[%clk 0:01:34]}  Nd6 {[%clk 0:02:30]} 16. c4 {[%clk 0:01:35]}  Nde4 {[%clk 0:02:15]} 17. f5 {[%clk 0:01:35]}  exf5 {[%clk 0:01:47]} 18. Rxf5 {[%clk 0:01:34]}  g6 {[%clk 0:01:28]} 19. Rff1 {[%clk 0:00:53]}  Nxd2 {[%clk 0:01:27]} 20. Qxd2 {[%clk 0:00:53]}  Nh5 {[%clk 0:01:02]} 21. Qf2 {[%clk 0:00:46]}  f6 {[%clk 0:00:46]} 22. Ng4 {[%clk 0:00:43]}  Nf4 {[%clk 0:00:43]} 23. Bc2 {[%clk 0:00:22]}  dxc4 {[%clk 0:00:42]} 24. Ne3 {[%clk 0:00:18]}  c3 {[%clk 0:00:39]} 25. Bc1 {[%clk 0:00:18]}  Qxd4 {[%clk 0:00:39]} 26. Rd1 {[%clk 0:00:17]}  Qe5 {[%clk 0:00:36]} 27. Kg1 {[%clk 0:00:13]}  Ne2+ {[%clk 0:00:31]} 28. Qxe2 {[%clk 0:00:12]}  Qxh2+ {[%clk 0:00:31]} 29. Kf2 {[%clk 0:00:11]}  Bg3# {[%clk 0:00:31]} 0-1


[Site "https://www.chess.com"]